[Event "*** Titled Tuesday Blitz AM"]
[Site "Chess.com"]
[Date "2020.01.07"]
[Round "6"]
[White "Redbandit87"]
[Black "albi1999"]
[Result "0-1"]
[WhiteElo "2366"]
[BlackElo "2526"]
[TimeControl "180+2"]
[EndTime "10:21:19 PST"]
[Termination "albi1999 won by resignation"]

1. d4 {[%clk 0:03:01.9]} 1... d5 {[%clk 0:02:59.9]} 2. Bf4 {[%clk 0:03:02.3]}
2... c5 {[%clk 0:02:58.4]} 3. e3 {[%clk 0:03:03.2]} 3... cxd4 {[%clk 0:02:58.3]}
4. exd4 {[%clk 0:03:04.2]} 4... Nc6 {[%clk 0:02:59.9]} 5. c3 {[%clk 0:03:05.2]}
5... Bf5 {[%clk 0:02:58.6]} 6. Nd2 {[%clk 0:03:03.6]} 6... e6 {[%clk 0:02:57.9]}
7. Ngf3 {[%clk 0:03:04.3]} 7... f6 {[%clk 0:02:59.1]} 8. Qb3 {[%clk 0:02:51.6]}
8... Qd7 {[%clk 0:02:58.2]} 9. h3 {[%clk 0:02:44.6]} 9... g5 {[%clk 0:02:58.2]}
10. Bg3 {[%clk 0:02:44.4]} 10... h5 {[%clk 0:02:59.2]} 11. Bb5 {[%clk
0:02:41.3]} 11... Nge7 {[%clk 0:02:58.9]} 12. O-O {[%clk 0:02:25.2]} 12... a6
{[%clk 0:02:57.5]} 13. Bxc6 {[%clk 0:02:21]} 13... Nxc6 {[%clk 0:02:59.4]} 14.
Rfe1 {[%clk 0:02:16.5]} 14... Kf7 {[%clk 0:02:58.6]} 15. Nf1 {[%clk 0:02:16]}
15... h4 {[%clk 0:02:48]} 16. Bh2 {[%clk 0:02:06.4]} 16... g4 {[%clk 0:02:48.5]}
17. hxg4 {[%clk 0:01:56.7]} 17... Bxg4 {[%clk 0:02:50.4]} 18. N3d2 {[%clk
0:01:58]} 18... Be7 {[%clk 0:02:38.2]} 19. f3 {[%clk 0:01:58.9]} 19... Bh5
{[%clk 0:02:34.6]} 20. Re2 {[%clk 0:01:56]} 20... Rae8 {[%clk 0:02:23.4]} 21.
Rae1 {[%clk 0:01:56.3]} 21... Bf8 {[%clk 0:02:18.6]} 22. a3 {[%clk 0:01:50.8]}
22... Bh6 {[%clk 0:02:19]} 23. Qc2 {[%clk 0:01:32.8]} 23... Bg6 {[%clk
0:02:13.4]} 24. Qd1 {[%clk 0:01:33.7]} 24... Rhg8 {[%clk 0:02:13.8]} 25. Nb3
{[%clk 0:01:33.8]} 25... b6 {[%clk 0:02:11.3]} 26. Ne3 {[%clk 0:01:31.6]} 26...
Bh5 {[%clk 0:02:10.2]} 27. Rf1 {[%clk 0:01:20.9]} 27... Rg6 {[%clk 0:02:09.1]}
28. Qe1 {[%clk 0:01:21.3]} 28... Bg5 {[%clk 0:01:41.4]} 29. f4 {[%clk
0:01:14.7]} 29... Bxe2 {[%clk 0:01:40.8]} 30. Qxe2 {[%clk 0:01:12.4]} 30... Bh6
{[%clk 0:01:39.3]} 31. Qh5 {[%clk 0:01:10.1]} 31... f5 {[%clk 0:01:33.9]} 32.
Nd2 {[%clk 0:01:08.8]} 32... Qe7 {[%clk 0:01:14.7]} 33. Nf3 {[%clk 0:01:06.8]}
33... Kg7 {[%clk 0:00:55.8]} 34. Nxh4 {[%clk 0:01:02.8]} 34... Rf6 {[%clk
0:00:56.2]} 35. Rf3 {[%clk 0:01:00.2]} 35... Qf7 {[%clk 0:00:54.2]} 36. Rg3+
{[%clk 0:00:57.5]} 36... Kh7 {[%clk 0:00:55.2]} 37. Qf3 {[%clk 0:00:57]} 37...
Bf8 {[%clk 0:00:42.3]} 38. Rh3 {[%clk 0:00:45.1]} 38... Rh6 {[%clk 0:00:43.3]}
39. Bg3 {[%clk 0:00:46]} 39... Be7 {[%clk 0:00:44]} 40. Bf2 {[%clk 0:00:39.9]}
40... Rg8 {[%clk 0:00:43.8]} 41. Kh2 {[%clk 0:00:22.8]} 41... Bf6 {[%clk
0:00:42.5]} 42. g3 {[%clk 0:00:21.4]} 42... Bxh4 {[%clk 0:00:38.4]} 43. gxh4
{[%clk 0:00:22.3]} 43... Ne7 {[%clk 0:00:33.7]} 44. h5 {[%clk 0:00:21.6]} 44...
Nc8 {[%clk 0:00:32.2]} 45. Ng2 {[%clk 0:00:21.2]} 45... Rg4 {[%clk 0:00:27.1]}
46. Ne3 {[%clk 0:00:21.4]} 46... Rg8 {[%clk 0:00:27.9]} 47. Ng2 {[%clk
0:00:22.6]} 47... Nd6 {[%clk 0:00:29.2]} 48. Bh4 {[%clk 0:00:18.5]} 48... Ne4
{[%clk 0:00:30.1]} 49. Be1 {[%clk 0:00:17.8]} 49... b5 {[%clk 0:00:24.3]} 50.
Rh4 {[%clk 0:00:16.7]} 50... Rg4 {[%clk 0:00:21.5]} 51. Rxg4 {[%clk 0:00:14.5]}
51... fxg4 {[%clk 0:00:23.4]} 52. Qxg4 {[%clk 0:00:15.5]} 52... Qxh5+ {[%clk
0:00:25]} 53. Qxh5 {[%clk 0:00:16.8]} 53... Rxh5+ {[%clk 0:00:26.9]} 54. Kg1
{[%clk 0:00:18.4]} 54... Kg6 {[%clk 0:00:26.5]} 55. Kf1 {[%clk 0:00:18.4]} 55...
Kf5 {[%clk 0:00:26]} 56. Ke2 {[%clk 0:00:16.2]} 56... Rh2 {[%clk 0:00:25.5]} 57.
Kf3 {[%clk 0:00:17.1]} 57... Rh3+ {[%clk 0:00:26.2]} 58. Ke2 {[%clk 0:00:17.8]}
58... Rh8 {[%clk 0:00:24.1]} 59. Kf3 {[%clk 0:00:15.6]} 59... Nd6 {[%clk
0:00:20.9]} 60. Ne3+ {[%clk 0:00:16.5]} 60... Kg6 {[%clk 0:00:21.9]} 61. Bg3
{[%clk 0:00:17.5]} 61... Nc4 {[%clk 0:00:21.1]} 62. Ng4 {[%clk 0:00:15.4]} 62...
Nxb2 {[%clk 0:00:20.3]} 63. Ne5+ {[%clk 0:00:16.8]} 63... Kf5 {[%clk 0:00:21.3]}
64. Nf7 {[%clk 0:00:16.2]} 64... Rh1 {[%clk 0:00:20.7]} 65. Nd6+ {[%clk
0:00:17.4]} 65... Kg6 {[%clk 0:00:21.7]} 66. Kg4 {[%clk 0:00:18.6]} 66... Nc4
{[%clk 0:00:21.9]} 67. Nb7 {[%clk 0:00:18]} 67... Rc1 {[%clk 0:00:19.9]} 68. Nd8
{[%clk 0:00:18.6]} 68... Rxc3 {[%clk 0:00:19.4]} 69. Nxe6 {[%clk 0:00:19.1]}
69... Ne3+ {[%clk 0:00:21]} 70. Kh3 {[%clk 0:00:19.5]} 70... Nf5 {[%clk
0:00:21.8]} 0-1

[Event "*** Titled Tuesday Blitz AM"]
[Site "Chess.com"]
[Date "2020.01.07"]
[Round "6"]
[White "FMAntonio"]
[Black "Rap_woyska"]
[Result "1/2-1/2"]
[WhiteElo "2491"]
[BlackElo "2360"]
[TimeControl "180+2"]
[EndTime "10:21:33 PST"]
[Termination "Game drawn - insufficient material"]

1. d4 {[%clk 0:02:47.8]} 1... Nf6 {[%clk 0:03:00.1]} 2. c4 {[%clk 0:02:47.9]}
2... c5 {[%clk 0:03:01]} 3. d5 {[%clk 0:02:48.8]} 3... b5 {[%clk 0:03:01.1]} 4.
cxb5 {[%clk 0:02:49.3]} 4... a6 {[%clk 0:03:02.6]} 5. bxa6 {[%clk 0:02:49.9]}
5... g6 {[%clk 0:03:03.6]} 6. Nc3 {[%clk 0:02:48.9]} 6... Bg7 {[%clk 0:03:03.7]}
7. e4 {[%clk 0:02:45.9]} 7... O-O {[%clk 0:03:03.6]} 8. Be2 {[%clk 0:02:44.9]}
8... Qa5 {[%clk 0:03:03.7]} 9. Bd2 {[%clk 0:02:45.3]} 9... Bxa6 {[%clk 0:03:04]}
10. e5 {[%clk 0:02:46.5]} 10... Ne8 {[%clk 0:03:00.6]} 11. Nf3 {[%clk
0:02:47.3]} 11... d6 {[%clk 0:02:59]} 12. e6 {[%clk 0:02:48.5]} 12... Bxe2
{[%clk 0:02:59.9]} 13. exf7+ {[%clk 0:02:35]} 13... Rxf7 {[%clk 0:03:00.7]} 14.
Qxe2 {[%clk 0:02:36.9]} 14... Qa6 {[%clk 0:02:52.9]} 15. a4 {[%clk 0:02:11.8]}
15... Nc7 {[%clk 0:02:49.3]} 16. Qxa6 {[%clk 0:02:02.6]} 16... Nbxa6 {[%clk
0:02:38.9]} 17. Ke2 {[%clk 0:01:52.8]} 17... Nb4 {[%clk 0:02:37.5]} 18. a5
{[%clk 0:01:30.4]} 18... Ncxd5 {[%clk 0:02:12]} 19. Nxd5 {[%clk 0:01:23.9]}
19... Nxd5 {[%clk 0:02:13.9]} 20. Ra2 {[%clk 0:01:21.9]} 20... e6 {[%clk
0:02:06.2]} 21. Ng5 {[%clk 0:01:18.5]} 21... Rfa7 {[%clk 0:01:51.6]} 22. Ne4
{[%clk 0:01:14.9]} 22... Ra6 {[%clk 0:01:28.5]} 23. Rd1 {[%clk 0:01:05.4]} 23...
Be5 {[%clk 0:01:27.1]} 24. g3 {[%clk 0:01:04.7]} 24... Nb4 {[%clk 0:01:11.4]}
25. Bxb4 {[%clk 0:00:58.5]} 25... cxb4 {[%clk 0:01:13.3]} 26. f4 {[%clk
0:00:59.4]} 26... b3 {[%clk 0:01:14.4]} 27. Ra3 {[%clk 0:00:56.6]} 27... Bg7
{[%clk 0:00:52.9]} 28. Rxb3 {[%clk 0:00:53.1]} 28... d5 {[%clk 0:00:53.6]} 29.
Nc5 {[%clk 0:00:41.1]} 29... Rxa5 {[%clk 0:00:54.6]} 30. Nxe6 {[%clk 0:00:36]}
30... Re8 {[%clk 0:00:55]} 31. Re3 {[%clk 0:00:34.5]} 31... Bxb2 {[%clk
0:00:33.7]} 32. Nc7 {[%clk 0:00:27.3]} 32... Rxe3+ {[%clk 0:00:23.3]} 33. Kxe3
{[%clk 0:00:29.2]} 33... Ra3+ {[%clk 0:00:21.1]} 34. Ke2 {[%clk 0:00:27.5]}
34... d4 {[%clk 0:00:21.6]} 35. Nb5 {[%clk 0:00:22.7]} 35... Ra4 {[%clk
0:00:15.1]} 36. Kd3 {[%clk 0:00:21.4]} 36... Rb4 {[%clk 0:00:14.2]} 37. Nd6
{[%clk 0:00:22.3]} 37... Bc3 {[%clk 0:00:14]} 38. Ne4 {[%clk 0:00:22.5]} 38...
Rb2 {[%clk 0:00:15]} 39. Rh1 {[%clk 0:00:08.8]} 39... Rb3 {[%clk 0:00:06.3]} 40.
Nxc3 {[%clk 0:00:10.1]} 40... dxc3 {[%clk 0:00:06.2]} 41. Rc1 {[%clk 0:00:11.1]}
41... Rb2 {[%clk 0:00:07]} 42. Rc2 {[%clk 0:00:12.2]} 42... Rb1 {[%clk
0:00:05.6]} 43. Kxc3 {[%clk 0:00:13.3]} 43... Kg7 {[%clk 0:00:07.1]} 44. Kd4
{[%clk 0:00:14]} 44... Kf6 {[%clk 0:00:07.2]} 45. Ke4 {[%clk 0:00:14.5]} 45...
Re1+ {[%clk 0:00:07.5]} 46. Kf3 {[%clk 0:00:15.2]} 46... h5 {[%clk 0:00:08.9]}
47. Rc6+ {[%clk 0:00:15.9]} 47... Kf5 {[%clk 0:00:09.2]} 48. h3 {[%clk
0:00:14.6]} 48... Rf1+ {[%clk 0:00:09.8]} 49. Kg2 {[%clk 0:00:15.1]} 49... Ra1
{[%clk 0:00:11.1]} 50. Rc5+ {[%clk 0:00:15.7]} 50... Kf6 {[%clk 0:00:11.9]} 51.
g4 {[%clk 0:00:16.5]} 51... hxg4 {[%clk 0:00:13.8]} 52. hxg4 {[%clk 0:00:17.8]}
52... Ra3 {[%clk 0:00:15.4]} 53. Rc6+ {[%clk 0:00:15.1]} 53... Kf7 {[%clk
0:00:16.4]} 54. Rc7+ {[%clk 0:00:15.2]} 54... Kf6 {[%clk 0:00:17.4]} 55. g5+
{[%clk 0:00:14.3]} 55... Kf5 {[%clk 0:00:06.9]} 56. Rf7+ {[%clk 0:00:15.3]}
56... Kg4 {[%clk 0:00:07.5]} 57. f5 {[%clk 0:00:06.6]} 57... Ra2+ {[%clk
0:00:08.4]} 58. Kf1 {[%clk 0:00:07.3]} 58... gxf5 {[%clk 0:00:05.3]} 59. g6
{[%clk 0:00:08.3]} 59... Ra8 {[%clk 0:00:03.8]} 60. g7 {[%clk 0:00:07.7]} 60...
Rg8 {[%clk 0:00:04.7]} 61. Kf2 {[%clk 0:00:08.3]} 61... Kg5 {[%clk 0:00:05.6]}
62. Kf3 {[%clk 0:00:09.1]} 62... Kg6 {[%clk 0:00:07.1]} 63. Ra7 {[%clk
0:00:08.7]} 63... Rxg7 {[%clk 0:00:08.5]} 64. Rxg7+ {[%clk 0:00:07.6]} 64...
Kxg7 {[%clk 0:00:10.4]} 65. Kf4 {[%clk 0:00:08.7]} 65... Kf8 {[%clk 0:00:12.3]}
66. Kxf5 {[%clk 0:00:09.8]} 1/2-1/2

[Event "*** Titled Tuesday Blitz AM"]
[Site "Chess.com"]
[Date "2020.01.07"]
[Round "6"]
[White "Zq1"]
[Black "chess4ever007"]
[Result "0-1"]
[WhiteElo "2550"]
[BlackElo "2468"]
[TimeControl "180+2"]
[EndTime "10:21:38 PST"]
[Termination "chess4ever007 won by resignation"]

1. d4 {[%clk 0:03:01.9]} 1... Nf6 {[%clk 0:03:00.1]} 2. c4 {[%clk 0:03:02.6]}
2... g6 {[%clk 0:03:00.9]} 3. Nc3 {[%clk 0:03:03.1]} 3... Bg7 {[%clk 0:03:02]}
4. e4 {[%clk 0:03:03.7]} 4... d6 {[%clk 0:03:03.3]} 5. Nf3 {[%clk 0:03:04.3]}
5... O-O {[%clk 0:03:04.4]} 6. Be2 {[%clk 0:03:05.5]} 6... Na6 {[%clk
0:03:05.5]} 7. O-O {[%clk 0:03:05.9]} 7... e5 {[%clk 0:03:06.4]} 8. Re1 {[%clk
0:03:06.5]} 8... Qe8 {[%clk 0:02:45.4]} 9. dxe5 {[%clk 0:03:03.2]} 9... dxe5
{[%clk 0:02:45.4]} 10. Be3 {[%clk 0:03:03.6]} 10... c6 {[%clk 0:02:24.2]} 11. c5
{[%clk 0:03:02.7]} 11... Nc7 {[%clk 0:02:18.6]} 12. Nd2 {[%clk 0:03:02.3]} 12...
Be6 {[%clk 0:02:10.4]} 13. Nc4 {[%clk 0:03:00.7]} 13... Bxc4 {[%clk 0:02:09.3]}
14. Bxc4 {[%clk 0:03:00.6]} 14... Ne6 {[%clk 0:01:52.2]} 15. Qb3 {[%clk
0:02:49]} 15... Nd4 {[%clk 0:01:49.5]} 16. Bxd4 {[%clk 0:02:32.5]} 16... exd4
{[%clk 0:01:49]} 17. Na4 {[%clk 0:02:33]} 17... Qb8 {[%clk 0:00:42.3]} 18. g3
{[%clk 0:02:13.4]} 18... Ng4 {[%clk 0:00:40.2]} 19. Be2 {[%clk 0:01:55.9]} 19...
Ne5 {[%clk 0:00:33.1]} 20. Kg2 {[%clk 0:01:52.1]} 20... g5 {[%clk 0:00:28.5]}
21. Rad1 {[%clk 0:01:46.1]} 21... Ng6 {[%clk 0:00:26.4]} 22. Bh5 {[%clk
0:01:41.7]} 22... Qc7 {[%clk 0:00:24.2]} 23. Bxg6 {[%clk 0:01:28.3]} 23... hxg6
{[%clk 0:00:26.1]} 24. Qf3 {[%clk 0:01:25.3]} 24... Qe5 {[%clk 0:00:24.2]} 25.
b3 {[%clk 0:01:21.9]} 25... Qe6 {[%clk 0:00:21.4]} 26. h3 {[%clk 0:01:16.9]}
26... Rfe8 {[%clk 0:00:18.3]} 27. Nb2 {[%clk 0:01:13.7]} 27... Qe5 {[%clk
0:00:17.8]} 28. Nd3 {[%clk 0:01:13]} 28... Qe6 {[%clk 0:00:18.4]} 29. e5 {[%clk
0:01:06.2]} 29... Re7 {[%clk 0:00:19]} 30. Re4 {[%clk 0:01:04.1]} 30... Rd8
{[%clk 0:00:19.6]} 31. Rde1 {[%clk 0:01:03.8]} 31... Qd5 {[%clk 0:00:19.5]} 32.
Rg4 {[%clk 0:01:01.4]} 32... Qxf3+ {[%clk 0:00:19.4]} 33. Kxf3 {[%clk
0:01:01.6]} 33... f5 {[%clk 0:00:20.4]} 34. exf6 {[%clk 0:01:00.5]} 34... Rxe1
{[%clk 0:00:18.9]} 35. Nxe1 {[%clk 0:00:50.6]} 35... Bxf6 {[%clk 0:00:20.8]} 36.
Nd3 {[%clk 0:00:50.9]} 36... Kf7 {[%clk 0:00:21.5]} 37. Re4 {[%clk 0:00:50.1]}
37... Rd5 {[%clk 0:00:22.2]} 38. b4 {[%clk 0:00:45.5]} 38... Rf5+ {[%clk
0:00:21.2]} 39. Ke2 {[%clk 0:00:44.8]} 39... Rd5 {[%clk 0:00:23.1]} 40. Ne1
{[%clk 0:00:39.7]} 40... a5 {[%clk 0:00:23.8]} 41. a3 {[%clk 0:00:40.1]} 41...
axb4 {[%clk 0:00:25]} 42. axb4 {[%clk 0:00:41.3]} 42... Rd8 {[%clk 0:00:26.9]}
43. Nd3 {[%clk 0:00:37.1]} 43... Ra8 {[%clk 0:00:27.2]} 44. Ne5+ {[%clk
0:00:37.3]} 44... Bxe5 {[%clk 0:00:26.1]} 45. Rxe5 {[%clk 0:00:38.1]} 45... Ra2+
{[%clk 0:00:27.4]} 46. Kf3 {[%clk 0:00:36]} 46... Rb2 {[%clk 0:00:24.9]} 47. Kg4
{[%clk 0:00:33.2]} 47... Rxb4 {[%clk 0:00:17.8]} 48. Kxg5 {[%clk 0:00:32]} 48...
Rb2 {[%clk 0:00:18.8]} 49. f4 {[%clk 0:00:29.4]} 49... d3 {[%clk 0:00:20]} 50.
Re3 {[%clk 0:00:29.7]} 50... d2 {[%clk 0:00:19.4]} 51. Rd3 {[%clk 0:00:30.7]}
51... Rc2 {[%clk 0:00:20.1]} 52. Kg4 {[%clk 0:00:27.2]} 52... Rxc5 {[%clk
0:00:20.4]} 53. Rxd2 {[%clk 0:00:27.4]} 53... b5 {[%clk 0:00:21.6]} 54. Rd7+
{[%clk 0:00:27.1]} 54... Kf6 {[%clk 0:00:22.1]} 55. Rb7 {[%clk 0:00:27.7]} 55...
Rc4 {[%clk 0:00:22.4]} 56. Kf3 {[%clk 0:00:27.7]} 56... b4 {[%clk 0:00:23.4]}
57. g4 {[%clk 0:00:27.9]} 57... c5 {[%clk 0:00:24.2]} 58. g5+ {[%clk 0:00:27.3]}
58... Ke6 {[%clk 0:00:20.4]} 59. h4 {[%clk 0:00:27.8]} 59... Rc3+ {[%clk
0:00:20.8]} 60. Kg4 {[%clk 0:00:28.3]} 60... b3 {[%clk 0:00:21.7]} 61. h5 {[%clk
0:00:29.1]} 61... gxh5+ {[%clk 0:00:21.7]} 62. Kxh5 {[%clk 0:00:30.1]} 62... c4
{[%clk 0:00:22.8]} 63. Kg6 {[%clk 0:00:29.4]} 63... Rf3 {[%clk 0:00:23.3]} 64.
f5+ {[%clk 0:00:23.4]} 64... Rxf5 {[%clk 0:00:15]} 65. Rb6+ {[%clk 0:00:23.5]}
65... Ke5 {[%clk 0:00:16.1]} 66. Rb5+ {[%clk 0:00:24.6]} 66... Ke4 {[%clk
0:00:16.6]} 67. Rxf5 {[%clk 0:00:26.1]} 67... b2 {[%clk 0:00:17.7]} 68. Rb5
{[%clk 0:00:27]} 68... c3 {[%clk 0:00:17.6]} 69. Rb4+ {[%clk 0:00:22.4]} 69...
Kd3 {[%clk 0:00:17.9]} 70. Kg7 {[%clk 0:00:20.3]} 70... c2 {[%clk 0:00:11.7]}
71. Rb3+ {[%clk 0:00:19.9]} 71... Kc4 {[%clk 0:00:11.2]} 72. Rxb2 {[%clk
0:00:21]} 72... c1=Q {[%clk 0:00:11.8]} 73. Rg2 {[%clk 0:00:20.9]} 73... Qf4
{[%clk 0:00:11.3]} 74. g6 {[%clk 0:00:20]} 74... Qe5+ {[%clk 0:00:12.1]} 75. Kf7
{[%clk 0:00:19.1]} 75... Qd5+ {[%clk 0:00:12.5]} 0-1

[Event "*** Titled Tuesday Blitz AM"]
[Site "Chess.com"]
[Date "2020.01.07"]
[Round "7"]
[White "anand-carlsen"]
[Black "trickytock"]
[Result "1-0"]
[WhiteElo "2333"]
[BlackElo "2492"]
[TimeControl "180+2"]
[EndTime "10:27:44 PST"]
[Termination "anand-carlsen won by resignation"]

1. d4 {[%clk 0:03:01.9]} 1... Nf6 {[%clk 0:02:57.7]} 2. c4 {[%clk 0:03:03.1]}
2... e6 {[%clk 0:02:58.6]} 3. Nf3 {[%clk 0:03:03.4]} 3... d5 {[%clk 0:02:59.5]}
4. Nc3 {[%clk 0:03:02.8]} 4... dxc4 {[%clk 0:02:59.7]} 5. e4 {[%clk 0:03:02.2]}
5... Bb4 {[%clk 0:03:01.1]} 6. Bg5 {[%clk 0:03:01.9]} 6... b5 {[%clk 0:03:02.1]}
7. e5 {[%clk 0:03:02.7]} 7... h6 {[%clk 0:03:03.2]} 8. exf6 {[%clk 0:03:04.2]}
8... hxg5 {[%clk 0:03:03.8]} 9. fxg7 {[%clk 0:03:05.7]} 9... Rg8 {[%clk
0:03:05.5]} 10. h4 {[%clk 0:03:07.3]} 10... g4 {[%clk 0:03:06.9]} 11. Ne5 {[%clk
0:03:08.6]} 11... f5 {[%clk 0:03:08.8]} 12. h5 {[%clk 0:03:07.5]} 12... Rxg7
{[%clk 0:03:09]} 13. Be2 {[%clk 0:03:08.7]} 13... Bb7 {[%clk 0:03:09.1]} 14. h6
{[%clk 0:03:03.7]} 14... Rh7 {[%clk 0:03:09.9]} 15. Bxg4 {[%clk 0:03:03.9]}
15... fxg4 {[%clk 0:03:10.2]} 16. Qxg4 {[%clk 0:03:05.2]} 16... Ke7 {[%clk
0:02:36.1]} 17. Qg5+ {[%clk 0:03:02]} 1-0

[Event "*** Titled Tuesday Blitz AM"]
[Site "Chess.com"]
[Date "2020.01.07"]
[Round "7"]
[White "aa175"]
[Black "KRASAVCHIK2002"]
[Result "0-1"]
[WhiteElo "2242"]
[BlackElo "2473"]
[TimeControl "180+2"]
[EndTime "10:29:09 PST"]
[Termination "KRASAVCHIK2002 won by resignation"]

1. d4 {[%clk 0:03:01.9]} 1... Nf6 {[%clk 0:03:00.6]} 2. Bf4 {[%clk 0:03:03]}
2... e6 {[%clk 0:03:02.5]} 3. e3 {[%clk 0:03:01]} 3... d5 {[%clk 0:03:02.8]} 4.
Nf3 {[%clk 0:03:01.7]} 4... Bd6 {[%clk 0:03:02.8]} 5. Bg3 {[%clk 0:03:00.9]}
5... b6 {[%clk 0:03:00]} 6. Nbd2 {[%clk 0:03:02]} 6... Bb7 {[%clk 0:02:57.4]} 7.
Bd3 {[%clk 0:02:59.4]} 7... Ne4 {[%clk 0:02:57.1]} 8. Nxe4 {[%clk 0:02:51.5]}
8... dxe4 {[%clk 0:02:55.7]} 9. Bxd6 {[%clk 0:01:42.8]} 9... Qxd6 {[%clk
0:02:53.3]} 10. Ne5 {[%clk 0:01:41.2]} 10... exd3 {[%clk 0:02:51.8]} 11. cxd3
{[%clk 0:01:41.8]} 11... c5 {[%clk 0:02:47.4]} 12. Qg4 {[%clk 0:01:30.8]} 12...
g6 {[%clk 0:02:44.2]} 13. Qf4 {[%clk 0:01:30.4]} 13... O-O {[%clk 0:02:42.2]}
14. Nxg6 {[%clk 0:01:31]} 14... Qxf4 {[%clk 0:02:40.1]} 15. Nxf4 {[%clk
0:01:32.9]} 15... cxd4 {[%clk 0:02:41.8]} 16. exd4 {[%clk 0:01:34.2]} 16... Nc6
{[%clk 0:02:39.6]} 17. d5 {[%clk 0:01:31.4]} 17... Nb4 {[%clk 0:02:40.9]} 18.
dxe6 {[%clk 0:01:28.6]} 0-1

[Event "*** Titled Tuesday Blitz AM"]
[Site "Chess.com"]
[Date "2020.01.07"]
[Round "7"]
[White "csati17"]
[Black "mohssenbinaddi"]
[Result "1-0"]
[WhiteElo "2552"]
[BlackElo "2216"]
[TimeControl "180+2"]
[EndTime "10:29:18 PST"]
[Termination "csati17 won by resignation"]

1. c4 {[%clk 0:03:01.9]} 1... Nf6 {[%clk 0:02:58.7]} 2. Nc3 {[%clk 0:03:03]}
2... g6 {[%clk 0:03:00]} 3. e4 {[%clk 0:03:04]} 3... d6 {[%clk 0:02:59.6]} 4. g3
{[%clk 0:03:05]} 4... c5 {[%clk 0:03:00.9]} 5. Bg2 {[%clk 0:03:06.3]} 5... Nc6
{[%clk 0:03:02.3]} 6. Nge2 {[%clk 0:03:07.9]} 6... Ne5 {[%clk 0:03:01.1]} 7. d3
{[%clk 0:03:08.9]} 7... Bg4 {[%clk 0:03:01]} 8. h3 {[%clk 0:03:04.1]} 8... Bf3
{[%clk 0:02:57.6]} 9. O-O {[%clk 0:03:02.2]} 9... h5 {[%clk 0:02:54.8]} 10. Bf4
{[%clk 0:02:58.4]} 10... Nfd7 {[%clk 0:02:44.6]} 11. Qa4 {[%clk 0:02:54.5]}
11... Bxe2 {[%clk 0:02:28]} 12. Nxe2 {[%clk 0:02:44.6]} 12... Nxd3 {[%clk
0:02:27]} 13. e5 {[%clk 0:02:45.8]} 13... Nxf4 {[%clk 0:02:22]} 14. Nxf4 {[%clk
0:02:37.8]} 14... dxe5 {[%clk 0:02:14.1]} 15. Rad1 {[%clk 0:02:37.4]} 15... exf4
{[%clk 0:02:12]} 16. Bxb7 {[%clk 0:02:38.1]} 16... Rc8 {[%clk 0:02:04.8]} 17.
Bc6 {[%clk 0:02:20.7]} 17... Rc7 {[%clk 0:02:01.3]} 18. Rxd7 {[%clk 0:02:21.1]}
18... Rc8 {[%clk 0:01:45]} 19. Rc7+ {[%clk 0:02:20.1]} 1-0

[Event "*** Titled Tuesday Blitz AM"]
[Site "Chess.com"]
[Date "2020.01.07"]
[Round "7"]
[White "AwareIdea"]
[Black "StephenDedalus83"]
[Result "0-1"]
[WhiteElo "2540"]
[BlackElo "2706"]
[TimeControl "180+2"]
[EndTime "10:29:33 PST"]
[Termination "StephenDedalus83 won by resignation"]

1. c4 {[%clk 0:02:57.8]} 1... g6 {[%clk 0:03:00.8]} 2. Nc3 {[%clk 0:02:57.6]}
2... Bg7 {[%clk 0:03:02.2]} 3. d4 {[%clk 0:02:59.1]} 3... d6 {[%clk 0:03:00.5]}
4. e4 {[%clk 0:02:59.8]} 4... Nc6 {[%clk 0:03:00.2]} 5. d5 {[%clk 0:02:57.8]}
5... Nd4 {[%clk 0:02:59]} 6. Nge2 {[%clk 0:02:55.7]} 6... c5 {[%clk 0:02:54.8]}
7. Nxd4 {[%clk 0:02:54.5]} 7... cxd4 {[%clk 0:02:55.6]} 8. Nb5 {[%clk
0:02:54.5]} 8... Qb6 {[%clk 0:02:56.2]} 9. Bd3 {[%clk 0:02:48.9]} 9... Nf6
{[%clk 0:02:44.9]} 10. O-O {[%clk 0:02:49.1]} 10... O-O {[%clk 0:02:43.5]} 11.
b3 {[%clk 0:02:47]} 11... a6 {[%clk 0:02:41.4]} 12. Na3 {[%clk 0:02:47.6]} 12...
e5 {[%clk 0:02:36.9]} 13. Nc2 {[%clk 0:02:42.4]} 13... Nd7 {[%clk 0:02:33.3]}
14. Ba3 {[%clk 0:02:27.6]} 14... a5 {[%clk 0:02:30.2]} 15. Bc1 {[%clk
0:02:23.9]} 15... Nc5 {[%clk 0:02:30.6]} 16. Rb1 {[%clk 0:02:23.3]} 16... f5
{[%clk 0:02:30.3]} 17. f3 {[%clk 0:02:22.9]} 17... fxe4 {[%clk 0:02:26.8]} 18.
fxe4 {[%clk 0:02:21.8]} 18... Rxf1+ {[%clk 0:02:27.5]} 19. Qxf1 {[%clk
0:02:23.7]} 19... Bg4 {[%clk 0:02:26.5]} 20. Ba3 {[%clk 0:02:04.6]} 20... Rf8
{[%clk 0:02:26.2]} 21. Bxc5 {[%clk 0:01:52.9]} 21... Rxf1+ {[%clk 0:02:26.5]}
22. Rxf1 {[%clk 0:01:51.8]} 22... Qxc5 {[%clk 0:02:26.8]} 23. h3 {[%clk
0:01:53.7]} 23... Bd7 {[%clk 0:02:26.9]} 0-1

[Event "*** Titled Tuesday Blitz AM"]
[Site "Chess.com"]
[Date "2020.01.07"]
[Round "7"]
[White "Eliwood44"]
[Black "Kirill_Kopenkin"]
[Result "0-1"]
[WhiteElo "2327"]
[BlackElo "2473"]
[TimeControl "180+2"]
[EndTime "10:29:52 PST"]
[Termination "Kirill_Kopenkin won by resignation"]

1. d4 {[%clk 0:03:01.9]} 1... Nf6 {[%clk 0:02:59.8]} 2. Nf3 {[%clk 0:02:43.7]}
2... g6 {[%clk 0:03:00.6]} 3. e3 {[%clk 0:02:42.2]} 3... Bg7 {[%clk 0:03:01.7]}
4. Be2 {[%clk 0:02:43.4]} 4... O-O {[%clk 0:03:03]} 5. O-O {[%clk 0:02:44.3]}
5... d6 {[%clk 0:03:02.3]} 6. b3 {[%clk 0:02:44.3]} 6... Nbd7 {[%clk 0:02:54.8]}
7. Bb2 {[%clk 0:02:45]} 7... c6 {[%clk 0:02:53.5]} 8. c4 {[%clk 0:02:45.1]} 8...
Re8 {[%clk 0:02:54.6]} 9. Nc3 {[%clk 0:02:45.9]} 9... e5 {[%clk 0:02:55]} 10.
dxe5 {[%clk 0:02:47.1]} 10... dxe5 {[%clk 0:02:52.4]} 11. Qd2 {[%clk 0:02:48.1]}
11... Qc7 {[%clk 0:02:51.4]} 12. Rad1 {[%clk 0:02:48.5]} 12... a5 {[%clk
0:02:48.5]} 13. Qd6 {[%clk 0:02:45.8]} 13... Qxd6 {[%clk 0:02:42.6]} 14. Rxd6
{[%clk 0:02:47.7]} 14... Nc5 {[%clk 0:02:43.5]} 15. Rfd1 {[%clk 0:02:45]} 15...
Bf5 {[%clk 0:02:35.8]} 16. h3 {[%clk 0:02:30.7]} 16... Nfe4 {[%clk 0:02:18.1]}
17. Nxe4 {[%clk 0:02:31]} 17... Nxe4 {[%clk 0:02:18.9]} 18. R6d3 {[%clk
0:02:22.5]} 18... Nxf2 {[%clk 0:02:10.4]} 19. Kxf2 {[%clk 0:02:21.8]} 19... Bxd3
{[%clk 0:01:46.6]} 20. Bxd3 {[%clk 0:02:22.7]} 20... e4 {[%clk 0:01:47.9]} 21.
Bxg7 {[%clk 0:02:22.8]} 21... Kxg7 {[%clk 0:01:49.1]} 22. Be2 {[%clk 0:02:15.5]}
22... exf3 {[%clk 0:01:48.9]} 23. gxf3 {[%clk 0:02:16.9]} 23... Red8 {[%clk
0:01:46.1]} 24. Rb1 {[%clk 0:02:17.9]} 24... c5 {[%clk 0:01:45.6]} 25. a3 {[%clk
0:02:18.1]} 25... Rd2 {[%clk 0:01:44]} 0-1